[Event "December 12 Early 2023"]
[Site "https://www.chess.com"]
[Date "2023.12.12"]
[Round "3"]
[White "Mikhailovsky, Vladimir"]
[Black "Dinu, Dumitru-Daniel"]
[Result "1-0"]
[Board "77"]
[TimeControl "180+1"]
[WhiteFideId "34105414"]
[BlackFideId "1208403"]
[WhiteElo "2805"]
[BlackElo "2504"]
[WhiteTeam "RUS"]
[BlackTeam "ROU"]
[WhiteClock "0:00:07"]
[BlackClock "0:00:04"]

1. d4 {[%clk 0:02:51]}  Nf6 {[%clk 0:02:55]} 2. c4 {[%clk 0:02:47]}  e6 {[%clk 0:02:55]} 3. Nc3 {[%clk 0:02:47]}  Bb4 {[%clk 0:02:54]} 4. e3 {[%clk 0:02:46]}  O-O {[%clk 0:02:53]} 5. Bd3 {[%clk 0:02:45]}  d5 {[%clk 0:02:44]} 6. a3 {[%clk 0:02:44]}  Bxc3+ {[%clk 0:02:31]} 7. bxc3 {[%clk 0:02:45]}  c5 {[%clk 0:02:28]} 8. cxd5 {[%clk 0:02:44]}  exd5 {[%clk 0:02:25]} 9. Ne2 {[%clk 0:02:44]}  b6 {[%clk 0:02:19]} 10. O-O {[%clk 0:02:44]}  Ba6 {[%clk 0:02:18]} 11. f3 {[%clk 0:02:16]}  Re8 {[%clk 0:02:11]} 12. Ng3 {[%clk 0:02:13]}  Bxd3 {[%clk 0:01:35]} 13. Qxd3 {[%clk 0:02:14]}  Nc6 {[%clk 0:01:35]} 14. Bb2 {[%clk 0:02:03]}  c4 {[%clk 0:00:58]} 15. Qe2 {[%clk 0:01:55]}  b5 {[%clk 0:00:34]} 16. e4 {[%clk 0:01:51]}  a5 {[%clk 0:00:27]} 17. e5 {[%clk 0:01:50]}  b4 {[%clk 0:00:23]} 18. Qd2 {[%clk 0:01:29]}  bxc3 {[%clk 0:00:18]} 19. Bxc3 {[%clk 0:01:29]}  Nd7 {[%clk 0:00:18]} 20. f4 {[%clk 0:01:29]}  Nb6 {[%clk 0:00:16]} 21. f5 {[%clk 0:01:21]}  f6 {[%clk 0:00:16]} 22. Nh5 {[%clk 0:01:01]}  fxe5 {[%clk 0:00:14]} 23. f6 {[%clk 0:01:02]}  Rf8 {[%clk 0:00:11]} 24. fxg7 {[%clk 0:00:45]}  Rxf1+ {[%clk 0:00:11]} 25. Rxf1 {[%clk 0:00:46]}  Qe7 {[%clk 0:00:08]} 26. Qh6 {[%clk 0:00:45]}  Nd7 {[%clk 0:00:02]} 27. dxe5 {[%clk 0:00:39]}  Ncxe5 {[%clk 0:00:01]} 28. h3 {[%clk 0:00:09]}  Re8 {[%clk 0:00:01]} 29. Bxe5 {[%clk 0:00:04]}  Qxe5 {[%clk 0:00:01]} 30. Qc6 {[%clk 0:00:05]}  Qe6 {[%clk 0:00:01]} 31. Qb5 {[%clk 0:00:04]}  Qd6 {[%clk 0:00:02]} 32. Qxd7 {[%clk 0:00:03]}  Qxd7 {[%clk 0:00:02]} 33. Nf6+ {[%clk 0:00:04]}  Kxg7 {[%clk 0:00:03]} 34. Nxd7 {[%clk 0:00:05]}  Rd8 {[%clk 0:00:04]} 35. Nc5 {[%clk 0:00:05]}  Rc8 {[%clk 0:00:04]} 36. Ne6+ {[%clk 0:00:05]}  Kg6 {[%clk 0:00:04]} 37. Nd4 {[%clk 0:00:05]}  c3 {[%clk 0:00:05]} 38. Rc1 {[%clk 0:00:04]}  Rc4 {[%clk 0:00:05]} 39. Ne2 {[%clk 0:00:05]}  d4 {[%clk 0:00:06]} 40. Kf2 {[%clk 0:00:04]}  Kf5 {[%clk 0:00:06]} 41. g3 {[%clk 0:00:04]}  Ke4 {[%clk 0:00:06]} 42. g4 {[%clk 0:00:04]}  d3 {[%clk 0:00:06]} 43. Rxc3 {[%clk 0:00:03]}  Ra4 {[%clk 0:00:02]} 44. Ng3+ {[%clk 0:00:02]}  Kd4 {[%clk 0:00:02]} 45. Rc1 {[%clk 0:00:03]}  d2 {[%clk 0:00:03]} 46. Rd1 {[%clk 0:00:04]}  Kd3 {[%clk 0:00:03]} 47. Nf1 {[%clk 0:00:05]}  Rf4+ {[%clk 0:00:03]} 48. Kg2 {[%clk 0:00:05]}  Ke2 {[%clk 0:00:03]} 49. Rxd2+ {[%clk 0:00:05]}  Ke1 {[%clk 0:00:04]} 50. Rd7 {[%clk 0:00:04]}  Rf2+ {[%clk 0:00:04]} 51. Kg3 {[%clk 0:00:05]}  Rxf1 {[%clk 0:00:05]} 52. Rxh7 {[%clk 0:00:05]}  Rg1+ {[%clk 0:00:05]} 53. Kf4 {[%clk 0:00:05]}  Rf1+ {[%clk 0:00:06]} 54. Kg5 {[%clk 0:00:05]}  Rf3 {[%clk 0:00:06]} 55. Re7+ {[%clk 0:00:04]}  Kf2 {[%clk 0:00:07]} 56. h4 {[%clk 0:00:04]}  Kg3 {[%clk 0:00:07]} 57. h5 {[%clk 0:00:03]}  Rb3 {[%clk 0:00:07]} 58. h6 {[%clk 0:00:02]}  Rb5+ {[%clk 0:00:07]} 59. Kg6 {[%clk 0:00:02]}  Kxg4 {[%clk 0:00:08]} 60. h7 {[%clk 0:00:03]}  Rg5+ {[%clk 0:00:06]} 61. Kf7 {[%clk 0:00:02]}  Rh5 {[%clk 0:00:06]} 62. Kg8 {[%clk 0:00:03]}  Rg5+ {[%clk 0:00:05]} 63. Rg7 {[%clk 0:00:03]}  a4 {[%clk 0:00:04]} 64. Rxg5+ {[%clk 0:00:03]}  Kxg5 {[%clk 0:00:05]} 65. h8=Q {[%clk 0:00:04]}  Kf4 {[%clk 0:00:06]} 66. Qc3 {[%clk 0:00:05]}  Ke4 {[%clk 0:00:06]} 67. Qb4+ {[%clk 0:00:06]}  Kd5 {[%clk 0:00:04]} 68. Qxa4 {[%clk 0:00:07]} 1-0

[Event "December 12 Early 2023"]
[Site "https://www.chess.com"]
[Date "2023.12.12"]
[Round "3"]
[White "Kruckenhauser, Arthur"]
[Black "Klukin, Kirill"]
[Result "0-1"]
[Board "78"]
[TimeControl "180+1"]
[WhiteFideId "1642812"]
[BlackFideId "24199273"]
[WhiteElo "2502"]
[BlackElo "2802"]
[WhiteTeam "AUT"]
[BlackTeam "RUS"]
[WhiteClock "0:00:08"]
[BlackClock "0:00:19"]

1. d4 {[%clk 0:02:58]}  f5 {[%clk 0:02:56]} 2. e3 {[%clk 0:02:54]}  Nf6 {[%clk 0:02:55]} 3. Bd3 {[%clk 0:02:55]}  e6 {[%clk 0:02:55]} 4. Nf3 {[%clk 0:02:51]}  b6 {[%clk 0:02:53]} 5. Nbd2 {[%clk 0:02:49]}  Bb7 {[%clk 0:02:53]} 6. Qe2 {[%clk 0:02:49]}  Ne4 {[%clk 0:02:45]} 7. c4 {[%clk 0:02:48]}  Bb4 {[%clk 0:02:43]} 8. O-O {[%clk 0:02:47]}  O-O {[%clk 0:02:43]} 9. a3 {[%clk 0:02:44]}  Be7 {[%clk 0:02:29]} 10. Ne1 {[%clk 0:02:29]}  c5 {[%clk 0:02:22]} 11. f3 {[%clk 0:02:27]}  Nxd2 {[%clk 0:02:19]} 12. Bxd2 {[%clk 0:02:28]}  Bf6 {[%clk 0:02:10]} 13. Bc3 {[%clk 0:02:25]}  f4 {[%clk 0:01:48]} 14. Nc2 {[%clk 0:02:19]}  Nc6 {[%clk 0:01:28]} 15. Qf2 {[%clk 0:01:49]}  fxe3 {[%clk 0:00:57]} 16. Qxe3 {[%clk 0:01:50]}  cxd4 {[%clk 0:00:58]} 17. Nxd4 {[%clk 0:01:49]}  Ne5 {[%clk 0:00:51]} 18. Be2 {[%clk 0:01:38]}  Rc8 {[%clk 0:00:51]} 19. Nxe6 {[%clk 0:01:29]}  dxe6 {[%clk 0:00:39]} 20. Bxe5 {[%clk 0:01:29]}  Rc5 {[%clk 0:00:29]} 21. Bxf6 {[%clk 0:01:23]}  Qxf6 {[%clk 0:00:30]} 22. b4 {[%clk 0:01:18]}  Re5 {[%clk 0:00:30]} 23. Qf2 {[%clk 0:01:18]}  Rg5 {[%clk 0:00:23]} 24. Rad1 {[%clk 0:01:06]}  Qb2 {[%clk 0:00:16]} 25. Rd7 {[%clk 0:00:58]}  Rf7 {[%clk 0:00:15]} 26. Rxf7 {[%clk 0:00:52]}  Kxf7 {[%clk 0:00:16]} 27. Rd1 {[%clk 0:00:52]}  Bc6 {[%clk 0:00:15]} 28. Qh4 {[%clk 0:00:38]}  Qxe2 {[%clk 0:00:11]} 29. Qxg5 {[%clk 0:00:23]}  Qxd1+ {[%clk 0:00:11]} 30. Kf2 {[%clk 0:00:24]}  Qc2+ {[%clk 0:00:10]} 31. Kg1 {[%clk 0:00:21]}  Qxc4 {[%clk 0:00:08]} 32. Qd8 {[%clk 0:00:18]}  Qd5 {[%clk 0:00:08]} 33. Qc7+ {[%clk 0:00:15]}  Qd7 {[%clk 0:00:07]} 34. Qf4+ {[%clk 0:00:16]}  Ke7 {[%clk 0:00:05]} 35. Qg5+ {[%clk 0:00:15]}  Ke8 {[%clk 0:00:05]} 36. Qf4 {[%clk 0:00:15]}  h6 {[%clk 0:00:06]} 37. Qe5 {[%clk 0:00:14]}  Kf7 {[%clk 0:00:06]} 38. Qf4+ {[%clk 0:00:14]}  Kg8 {[%clk 0:00:07]} 39. Qb8+ {[%clk 0:00:14]}  Kh7 {[%clk 0:00:08]} 40. Qf4 {[%clk 0:00:12]}  Bd5 {[%clk 0:00:08]} 41. Qd4 {[%clk 0:00:11]}  Qf7 {[%clk 0:00:08]} 42. a4 {[%clk 0:00:10]}  Qg6 {[%clk 0:00:08]} 43. a5 {[%clk 0:00:10]}  Bxf3 {[%clk 0:00:08]} 44. Qf2 {[%clk 0:00:08]}  Qxg2+ {[%clk 0:00:08]} 45. Qxg2 {[%clk 0:00:08]}  Bxg2 {[%clk 0:00:09]} 46. Kxg2 {[%clk 0:00:09]}  bxa5 {[%clk 0:00:10]} 47. bxa5 {[%clk 0:00:09]}  Kg6 {[%clk 0:00:11]} 48. Kf3 {[%clk 0:00:10]}  Kf5 {[%clk 0:00:12]} 49. Ke3 {[%clk 0:00:10]}  g5 {[%clk 0:00:12]} 50. Kd4 {[%clk 0:00:10]}  h5 {[%clk 0:00:13]} 51. Kc5 {[%clk 0:00:10]}  g4 {[%clk 0:00:13]} 52. Kc6 {[%clk 0:00:10]}  h4 {[%clk 0:00:13]} 53. Kb7 {[%clk 0:00:10]}  g3 {[%clk 0:00:14]} 54. hxg3 {[%clk 0:00:10]}  hxg3 {[%clk 0:00:15]} 55. Kxa7 {[%clk 0:00:11]}  g2 {[%clk 0:00:16]} 56. a6 {[%clk 0:00:11]}  g1=Q+ {[%clk 0:00:17]} 57. Ka8 {[%clk 0:00:10]}  Qg8+ {[%clk 0:00:16]} 58. Ka7 {[%clk 0:00:10]}  e5 {[%clk 0:00:16]} 59. Kb7 {[%clk 0:00:10]}  e4 {[%clk 0:00:17]} 60. a7 {[%clk 0:00:11]}  e3 {[%clk 0:00:18]} 61. a8=Q {[%clk 0:00:12]}  Qxa8+ {[%clk 0:00:18]} 62. Kxa8 {[%clk 0:00:08]}  e2 {[%clk 0:00:19]} 0-1

[Event "December 12 Early 2023"]
[Site "https://www.chess.com"]
[Date "2023.12.12"]
[Round "3"]
[White "Korchmar, Vasiliy"]
[Black "Parfenov, Viktor N."]
[Result "1-0"]
[Board "79"]
[TimeControl "180+1"]
[WhiteFideId "24131750"]
[BlackFideId "4165969"]
[WhiteElo "2795"]
[BlackElo "2501"]
[WhiteTeam "RUS"]
[BlackTeam "RUS"]
[WhiteClock "0:00:59"]
[BlackClock "0:01:32"]

1. e4 {[%clk 0:03:00]}  e5 {[%clk 0:02:56]} 2. Nf3 {[%clk 0:03:00]}  Nc6 {[%clk 0:02:55]} 3. Bc4 {[%clk 0:02:59]}  Nf6 {[%clk 0:02:54]} 4. d3 {[%clk 0:02:58]}  Bc5 {[%clk 0:02:54]} 5. c3 {[%clk 0:02:58]}  O-O {[%clk 0:02:53]} 6. Bg5 {[%clk 0:02:58]}  a6 {[%clk 0:02:47]} 7. Nbd2 {[%clk 0:02:55]}  h6 {[%clk 0:02:42]} 8. Bh4 {[%clk 0:02:55]}  Be7 {[%clk 0:02:42]} 9. O-O {[%clk 0:02:53]}  d6 {[%clk 0:02:42]} 10. a4 {[%clk 0:02:52]}  Nh5 {[%clk 0:02:41]} 11. Bg3 {[%clk 0:02:52]}  Nxg3 {[%clk 0:02:40]} 12. fxg3 {[%clk 0:02:53]}  Kh8 {[%clk 0:02:36]} 13. b4 {[%clk 0:02:13]}  f5 {[%clk 0:02:32]} 14. Qe2 {[%clk 0:01:59]}  fxe4 {[%clk 0:02:30]} 15. dxe4 {[%clk 0:01:59]}  Bg4 {[%clk 0:02:25]} 16. h3 {[%clk 0:01:58]}  Bh5 {[%clk 0:02:25]} 17. Bd5 {[%clk 0:01:45]}  Qd7 {[%clk 0:02:14]} 18. Nc4 {[%clk 0:01:42]}  Bf7 {[%clk 0:02:08]} 19. Ne3 {[%clk 0:01:23]}  Bg6 {[%clk 0:02:04]} 20. g4 {[%clk 0:01:16]}  Rae8 {[%clk 0:01:47]} 21. Nf5 {[%clk 0:01:15]}  Nd8 {[%clk 0:01:44]} 22. Rad1 {[%clk 0:01:00]}  c6 {[%clk 0:01:40]} 23. Bb3 {[%clk 0:00:59]}  Ne6 {[%clk 0:01:32]} 24. Nxe5 {[%clk 0:00:59]} 1-0

[Event "December 12 Early 2023"]
[Site "https://www.chess.com"]
[Date "2023.12.12"]
[Round "3"]
[White "GMFYHR1"]
[Black "Dragun, Kamil"]
[Result "0-1"]
[Board "80"]
[TimeControl "180+1"]
[BlackFideId "1134167"]
[WhiteElo "2499"]
[BlackElo "2787"]
[BlackTeam "POL"]
[WhiteClock "0:00:00"]
[BlackClock "0:00:20"]

1. d4 {[%clk 0:03:00]}  d5 {[%clk 0:02:55]} 2. c4 {[%clk 0:03:00]}  c6 {[%clk 0:02:56]} 3. cxd5 {[%clk 0:02:56]}  cxd5 {[%clk 0:02:57]} 4. Nc3 {[%clk 0:02:57]}  Nf6 {[%clk 0:02:58]} 5. Nf3 {[%clk 0:02:57]}  Nc6 {[%clk 0:02:58]} 6. Bf4 {[%clk 0:02:56]}  a6 {[%clk 0:02:56]} 7. Ne5 {[%clk 0:02:55]}  Qb6 {[%clk 0:02:56]} 8. Nxc6 {[%clk 0:02:49]}  bxc6 {[%clk 0:02:56]} 9. Qd2 {[%clk 0:02:50]}  Nh5 {[%clk 0:02:56]} 10. Be5 {[%clk 0:02:45]}  f6 {[%clk 0:02:47]} 11. Bg3 {[%clk 0:02:45]}  Nxg3 {[%clk 0:02:46]} 12. hxg3 {[%clk 0:02:45]}  e5 {[%clk 0:02:42]} 13. e3 {[%clk 0:02:35]}  Rb8 {[%clk 0:02:40]} 14. Na4 {[%clk 0:01:56]}  Qb4 {[%clk 0:02:40]} 15. b3 {[%clk 0:01:56]}  Qa3 {[%clk 0:02:30]} 16. Qc1 {[%clk 0:01:35]}  Qb4+ {[%clk 0:02:16]} 17. Qd2 {[%clk 0:01:35]}  Bd6 {[%clk 0:01:58]} 18. Bd3 {[%clk 0:01:34]}  e4 {[%clk 0:01:36]} 19. Be2 {[%clk 0:01:31]}  a5 {[%clk 0:01:30]} 20. Rc1 {[%clk 0:01:27]}  Bd7 {[%clk 0:01:29]} 21. Nc5 {[%clk 0:01:21]}  Bxc5 {[%clk 0:01:11]} 22. Rxc5 {[%clk 0:01:20]}  a4 {[%clk 0:01:11]} 23. Bh5+ {[%clk 0:01:14]}  Ke7 {[%clk 0:01:09]} 24. Bd1 {[%clk 0:01:14]}  axb3 {[%clk 0:01:05]} 25. Qxb4 {[%clk 0:01:10]}  Rxb4 {[%clk 0:01:00]} 26. Bxb3 {[%clk 0:01:10]}  h5 {[%clk 0:00:56]} 27. Kd2 {[%clk 0:01:06]}  g5 {[%clk 0:00:53]} 28. Kc3 {[%clk 0:01:06]}  Rb7 {[%clk 0:00:53]} 29. a4 {[%clk 0:00:34]}  h4 {[%clk 0:00:52]} 30. a5 {[%clk 0:00:33]}  Rhb8 {[%clk 0:00:44]} 31. Ba4 {[%clk 0:00:32]}  hxg3 {[%clk 0:00:43]} 32. fxg3 {[%clk 0:00:24]}  Kd6 {[%clk 0:00:41]} 33. Rf1 {[%clk 0:00:21]}  f5 {[%clk 0:00:40]} 34. Rh1 {[%clk 0:00:20]}  Re8 {[%clk 0:00:27]} 35. Rh6+ {[%clk 0:00:19]}  Re6 {[%clk 0:00:27]} 36. Rxe6+ {[%clk 0:00:20]}  Kxe6 {[%clk 0:00:20]} 37. Bxc6 {[%clk 0:00:19]}  Bxc6 {[%clk 0:00:19]} 38. Rxc6+ {[%clk 0:00:20]}  Kd7 {[%clk 0:00:19]} 39. Rg6 {[%clk 0:00:19]}  Rb5 {[%clk 0:00:18]} 40. a6 {[%clk 0:00:17]}  Ra5 {[%clk 0:00:18]} 41. a7 {[%clk 0:00:16]}  Kc7 {[%clk 0:00:19]} 42. Rxg5 {[%clk 0:00:15]}  Kc6 {[%clk 0:00:17]} 43. Rg6+ {[%clk 0:00:13]}  Kb5 {[%clk 0:00:17]} 44. Rg7 {[%clk 0:00:13]}  Ra3+ {[%clk 0:00:18]} 45. Kb2 {[%clk 0:00:12]}  Ra6 {[%clk 0:00:18]} 46. Rb7+ {[%clk 0:00:11]}  Kc4 {[%clk 0:00:18]} 47. Rf7 {[%clk 0:00:09]}  Kd3 {[%clk 0:00:18]} 48. Rxf5 {[%clk 0:00:06]}  Kxe3 {[%clk 0:00:19]} 49. Rxd5 {[%clk 0:00:06]}  Kd2 {[%clk 0:00:18]} 50. Rd7 {[%clk 0:00:02]}  e3 {[%clk 0:00:19]} 51. Re7 {[%clk 0:00:03]}  e2 {[%clk 0:00:19]} 52. Rxe2+ {[%clk 0:00:03]}  Kxe2 {[%clk 0:00:19]} 53. d5 {[%clk 0:00:03]}  Kd3 {[%clk 0:00:19]} 54. g4 {[%clk 0:00:02]}  Rxa7 {[%clk 0:00:19]} 55. g5 {[%clk 0:00:00]}  Kd4 {[%clk 0:00:20]} 0-1

[Event "December 12 Early 2023"]
[Site "https://www.chess.com"]
[Date "2023.12.12"]
[Round "3"]
[White "Yaniuk, Volodymyr"]
[Black "Javakhadze, Zurab"]
[Result "1-0"]
[Board "81"]
[TimeControl "180+1"]
[WhiteFideId "14133083"]
[BlackFideId "13603647"]
[WhiteElo "2496"]
[BlackElo "2780"]
[WhiteTeam "UKR"]
[BlackTeam "GEO"]
[WhiteClock "0:00:11"]
[BlackClock "0:00:04"]

1. d4 {[%clk 0:03:00]}  Nf6 {[%clk 0:02:59]} 2. c4 {[%clk 0:02:59]}  e6 {[%clk 0:02:59]} 3. Nf3 {[%clk 0:02:58]}  d5 {[%clk 0:02:53]} 4. g3 {[%clk 0:02:55]}  Be7 {[%clk 0:02:53]} 5. Bg2 {[%clk 0:02:55]}  O-O {[%clk 0:02:52]} 6. O-O {[%clk 0:02:55]}  a5 {[%clk 0:02:46]} 7. Ne5 {[%clk 0:02:53]}  c6 {[%clk 0:02:43]} 8. Nc3 {[%clk 0:02:53]}  b6 {[%clk 0:02:17]} 9. e4 {[%clk 0:02:52]}  Ba6 {[%clk 0:02:15]} 10. exd5 {[%clk 0:02:39]}  exd5 {[%clk 0:02:10]} 11. Re1 {[%clk 0:02:29]}  Ra7 {[%clk 0:01:32]} 12. cxd5 {[%clk 0:02:16]}  cxd5 {[%clk 0:01:18]} 13. Bg5 {[%clk 0:02:15]}  Bb7 {[%clk 0:00:56]} 14. Qb3 {[%clk 0:02:10]}  Bb4 {[%clk 0:00:53]} 15. Ng4 {[%clk 0:02:01]}  Nbd7 {[%clk 0:00:48]} 16. a3 {[%clk 0:01:46]}  Bxc3 {[%clk 0:00:44]} 17. Qxc3 {[%clk 0:01:45]}  h6 {[%clk 0:00:39]} 18. Nxf6+ {[%clk 0:01:39]}  Nxf6 {[%clk 0:00:40]} 19. Bf4 {[%clk 0:01:38]}  Ba8 {[%clk 0:00:31]} 20. Rac1 {[%clk 0:01:37]}  Ne4 {[%clk 0:00:30]} 21. Qb3 {[%clk 0:01:31]}  Re7 {[%clk 0:00:25]} 22. f3 {[%clk 0:01:27]}  Nf6 {[%clk 0:00:25]} 23. Rxe7 {[%clk 0:01:24]}  Qxe7 {[%clk 0:00:26]} 24. Qxb6 {[%clk 0:01:22]}  a4 {[%clk 0:00:25]} 25. Qb4 {[%clk 0:01:20]}  Qe2 {[%clk 0:00:20]} 26. Re1 {[%clk 0:01:13]}  Qc2 {[%clk 0:00:20]} 27. Rc1 {[%clk 0:01:04]}  Qe2 {[%clk 0:00:19]} 28. Qd2 {[%clk 0:01:04]}  Qb5 {[%clk 0:00:17]} 29. Bf1 {[%clk 0:01:03]}  Qb3 {[%clk 0:00:15]} 30. Rc3 {[%clk 0:01:01]}  Qb6 {[%clk 0:00:14]} 31. Kg2 {[%clk 0:01:00]}  Re8 {[%clk 0:00:14]} 32. Be3 {[%clk 0:00:59]}  Nd7 {[%clk 0:00:10]} 33. Bf2 {[%clk 0:00:58]}  Nf8 {[%clk 0:00:10]} 34. Qc2 {[%clk 0:00:57]}  Bb7 {[%clk 0:00:09]} 35. Qxa4 {[%clk 0:00:57]}  Re6 {[%clk 0:00:07]} 36. Rb3 {[%clk 0:00:51]}  Qc7 {[%clk 0:00:04]} 37. Qa7 {[%clk 0:00:49]}  Re7 {[%clk 0:00:03]} 38. Qc5 {[%clk 0:00:46]}  Qd8 {[%clk 0:00:02]} 39. Rc3 {[%clk 0:00:43]}  Ne6 {[%clk 0:00:02]} 40. Qb4 {[%clk 0:00:41]}  g5 {[%clk 0:00:02]} 41. a4 {[%clk 0:00:37]}  g4 {[%clk 0:00:03]} 42. fxg4 {[%clk 0:00:36]}  Ng5 {[%clk 0:00:03]} 43. Re3 {[%clk 0:00:34]}  Ne4 {[%clk 0:00:03]} 44. Be1 {[%clk 0:00:28]}  Bc8 {[%clk 0:00:03]} 45. Be2 {[%clk 0:00:27]}  h5 {[%clk 0:00:02]} 46. gxh5 {[%clk 0:00:24]}  Qd7 {[%clk 0:00:03]} 47. Kg1 {[%clk 0:00:21]}  Kh7 {[%clk 0:00:03]} 48. Bd3 {[%clk 0:00:21]}  Qf5 {[%clk 0:00:03]} 49. Qd2 {[%clk 0:00:19]}  Bd7 {[%clk 0:00:03]} 50. Qe2 {[%clk 0:00:19]}  Kg8 {[%clk 0:00:01]} 51. b3 {[%clk 0:00:19]}  Bc6 {[%clk 0:00:01]} 52. a5 {[%clk 0:00:19]}  Bb7 {[%clk 0:00:01]} 53. b4 {[%clk 0:00:19]}  Rc7 {[%clk 0:00:01]} 54. b5 {[%clk 0:00:18]}  Rc1 {[%clk 0:00:01]} 55. a6 {[%clk 0:00:17]}  Ba8 {[%clk 0:00:01]} 56. b6 {[%clk 0:00:17]}  Qd7 {[%clk 0:00:02]} 57. b7 {[%clk 0:00:16]}  Bxb7 {[%clk 0:00:02]} 58. axb7 {[%clk 0:00:17]}  Qxb7 {[%clk 0:00:03]} 59. Bxe4 {[%clk 0:00:17]}  dxe4 {[%clk 0:00:04]} 60. Rxe4 {[%clk 0:00:18]}  Qb3 {[%clk 0:00:02]} 61. h6 {[%clk 0:00:16]}  Kh7 {[%clk 0:00:01]} 62. Qe3 {[%clk 0:00:14]}  Qc2 {[%clk 0:00:01]} 63. Re7 {[%clk 0:00:13]}  Qf5 {[%clk 0:00:01]} 64. Kg2 {[%clk 0:00:10]}  Rc2+ {[%clk 0:00:01]} 65. Bf2 {[%clk 0:00:09]}  Qd5+ {[%clk 0:00:01]} 66. Qe4+ {[%clk 0:00:09]}  Qxe4+ {[%clk 0:00:01]} 67. Rxe4 {[%clk 0:00:10]}  f5 {[%clk 0:00:02]} 68. Rf4 {[%clk 0:00:10]}  Kxh6 {[%clk 0:00:03]} 69. Rxf5 {[%clk 0:00:10]}  Kg6 {[%clk 0:00:04]} 70. Rf4 {[%clk 0:00:11]}  Rd2 {[%clk 0:00:04]} 71. h4 {[%clk 0:00:11]}  Kh5 {[%clk 0:00:05]} 72. Kf3 {[%clk 0:00:11]}  Kg6 {[%clk 0:00:06]} 73. Be3 {[%clk 0:00:11]}  Rd3 {[%clk 0:00:06]} 74. g4 {[%clk 0:00:11]}  Ra3 {[%clk 0:00:07]} 75. Rf5 {[%clk 0:00:11]}  Kh7 {[%clk 0:00:08]} 76. d5 {[%clk 0:00:11]}  Ra4 {[%clk 0:00:09]} 77. h5 {[%clk 0:00:11]}  Ra7 {[%clk 0:00:06]} 78. Re5 {[%clk 0:00:12]}  Rd7 {[%clk 0:00:04]} 79. Ke4 {[%clk 0:00:12]}  Kg8 {[%clk 0:00:05]} 80. g5 {[%clk 0:00:12]}  Kh8 {[%clk 0:00:06]} 81. Bd4 {[%clk 0:00:11]}  Kh7 {[%clk 0:00:07]} 82. Re6 {[%clk 0:00:11]}  Rd8 {[%clk 0:00:06]} 83. g6+ {[%clk 0:00:11]}  Kg8 {[%clk 0:00:07]} 84. h6 {[%clk 0:00:11]}  Rf8 {[%clk 0:00:04]} 85. h7# {[%clk 0:00:11]} 1-0

[Event "December 12 Early 2023"]
[Site "https://www.chess.com"]
[Date "2023.12.12"]
[Round "3"]
[White "Weetik, Vjacheslav"]
[Black "Gutierrez Olivares, Daniel"]
[Result "1-0"]
[Board "83"]
[TimeControl "180+1"]
[WhiteFideId "4153472"]
[BlackFideId "2264005"]
[WhiteElo "2747"]
[BlackElo "2492"]
[WhiteTeam "RUS"]
[BlackTeam "ESP"]
[WhiteClock "0:00:03"]
[BlackClock "0:00:00"]

1. e4 {[%clk 0:02:58]}  e6 {[%clk 0:02:59]} 2. d3 {[%clk 0:02:56]}  d5 {[%clk 0:02:59]} 3. Qe2 {[%clk 0:02:57]}  Nf6 {[%clk 0:03:00]} 4. Nf3 {[%clk 0:02:57]}  b6 {[%clk 0:03:00]} 5. g3 {[%clk 0:02:56]}  Ba6 {[%clk 0:02:57]} 6. e5 {[%clk 0:02:53]}  Nfd7 {[%clk 0:02:57]} 7. h4 {[%clk 0:02:48]}  c5 {[%clk 0:02:57]} 8. Bg2 {[%clk 0:02:46]}  c4 {[%clk 0:02:50]} 9. O-O {[%clk 0:02:19]}  cxd3 {[%clk 0:02:44]} 10. cxd3 {[%clk 0:02:20]}  Nc6 {[%clk 0:02:45]} 11. Nc3 {[%clk 0:02:17]}  h6 {[%clk 0:02:23]} 12. Bf4 {[%clk 0:02:03]}  Be7 {[%clk 0:02:18]} 13. h5 {[%clk 0:02:02]}  Nc5 {[%clk 0:02:07]} 14. Rad1 {[%clk 0:02:00]}  g5 {[%clk 0:01:58]} 15. hxg6 {[%clk 0:01:57]}  fxg6 {[%clk 0:01:59]} 16. a3 {[%clk 0:01:34]}  g5 {[%clk 0:01:48]} 17. Bc1 {[%clk 0:01:30]}  Nb3 {[%clk 0:01:47]} 18. Bh3 {[%clk 0:01:12]}  Qd7 {[%clk 0:01:33]} 19. Nd2 {[%clk 0:00:45]}  Nbd4 {[%clk 0:01:17]} 20. Qh5+ {[%clk 0:00:45]}  Kd8 {[%clk 0:01:13]} 21. Rfe1 {[%clk 0:00:34]}  Bxd3 {[%clk 0:01:11]} 22. Nf3 {[%clk 0:00:32]}  Nxf3+ {[%clk 0:00:57]} 23. Qxf3 {[%clk 0:00:32]}  Bc4 {[%clk 0:00:54]} 24. Ne4 {[%clk 0:00:21]}  Kc7 {[%clk 0:00:50]} 25. Nf6 {[%clk 0:00:21]}  Bxf6 {[%clk 0:00:38]} 26. exf6 {[%clk 0:00:21]}  Rae8 {[%clk 0:00:38]} 27. b3 {[%clk 0:00:21]}  Ba6 {[%clk 0:00:34]} 28. Bb2 {[%clk 0:00:21]}  Rhf8 {[%clk 0:00:32]} 29. Qh5 {[%clk 0:00:16]}  Qd6 {[%clk 0:00:29]} 30. f7 {[%clk 0:00:12]}  Re7 {[%clk 0:00:27]} 31. Qxh6 {[%clk 0:00:12]}  Rfxf7 {[%clk 0:00:25]} 32. Rxe6 {[%clk 0:00:11]}  Rxe6 {[%clk 0:00:25]} 33. Qxe6 {[%clk 0:00:12]}  Re7 {[%clk 0:00:19]} 34. Qg8 {[%clk 0:00:09]}  Be2 {[%clk 0:00:14]} 35. Rc1 {[%clk 0:00:08]}  g4 {[%clk 0:00:10]} 36. Bxg4 {[%clk 0:00:07]}  Bxg4 {[%clk 0:00:11]} 37. Qxg4 {[%clk 0:00:08]}  Kb7 {[%clk 0:00:11]} 38. b4 {[%clk 0:00:08]}  a6 {[%clk 0:00:10]} 39. Rd1 {[%clk 0:00:07]}  Rd7 {[%clk 0:00:10]} 40. Qf5 {[%clk 0:00:07]}  d4 {[%clk 0:00:10]} 41. Qe4 {[%clk 0:00:07]}  Ka7 {[%clk 0:00:10]} 42. Rc1 {[%clk 0:00:06]}  Ne5 {[%clk 0:00:10]} 43. Re1 {[%clk 0:00:06]}  Re7 {[%clk 0:00:10]} 44. Kg2 {[%clk 0:00:05]}  Nc6 {[%clk 0:00:10]} 45. Qb1 {[%clk 0:00:05]}  Qd5+ {[%clk 0:00:11]} 46. Kg1 {[%clk 0:00:04]}  Rd7 {[%clk 0:00:10]} 47. Qe4 {[%clk 0:00:03]}  Qd6 {[%clk 0:00:08]} 48. Rd1 {[%clk 0:00:02]}  d3 {[%clk 0:00:08]} 49. Bc3 {[%clk 0:00:02]}  Re7 {[%clk 0:00:08]} 50. Qf3 {[%clk 0:00:03]}  Rd7 {[%clk 0:00:08]} 51. Qe4 {[%clk 0:00:03]}  Ne7 {[%clk 0:00:08]} 52. Kg2 {[%clk 0:00:03]}  Nf5 {[%clk 0:00:08]} 53. Qxf5 {[%clk 0:00:03]}  Qc6+ {[%clk 0:00:08]} 54. Kg1 {[%clk 0:00:04]}  Rd5 {[%clk 0:00:08]} 55. Qf7+ {[%clk 0:00:04]}  Rd7 {[%clk 0:00:08]} 56. Qf6 {[%clk 0:00:04]}  Qc4 {[%clk 0:00:06]} 57. Rd2 {[%clk 0:00:04]}  Qd5 {[%clk 0:00:04]} 58. Qf4 {[%clk 0:00:03]}  Rh7 {[%clk 0:00:05]} 59. f3 {[%clk 0:00:04]}  Re7 {[%clk 0:00:00]} 60. Kg2 {[%clk 0:00:03]} 1-0